[Event "28th Bosnjaci Open 2024"]
[Site "Bosnjaci"]
[Date "2024.01.06"]
[Round "5.9"]
[White "Damjanovic, Stjepan"]
[Black "Biti, Ozren"]
[Result "1-0"]
[ECO "C45"]
[WhiteElo "2149"]
[BlackElo "2308"]
[Annotator "RC"]
[PlyCount "65"]
[EventDate "2024.01.02"]
[EventType "swiss"]
[EventCountry "CRO"]
[SourceTitle "playchess.com"]
[Source "ChessBase"]
[SourceQuality "1"]
[TimeControl "5400+30"]

1. e4 {[%emt 0:00:08]} e5 {[%emt 0:01:02]} 2. Nf3 {[%emt 0:00:44]} Nc6 {[%emt 0:00:34]} 3. d4 {[%emt 0:05:35]} exd4 {[%emt 0:00:25]} 4. Nxd4 {[%emt 0:00:05]} Nf6 {[%emt 0:00:17]} 5. Nxc6 {[%emt 0:07:50]} bxc6 {[%emt 0:00:46]} 6. Bd3 {[%emt 0:00:26]} d6 {[%emt 0:01:44]} 7. O-O {[%emt 0:01:40]} g6 {[%emt 0:01:08]} 8. h3 {[%emt 0:15:54]} Bg7 {[%emt 0:00:51]} 9. Nc3 {[%emt 0:02:40]} O-O {[%emt 0:04:10]} 10. Bd2 {[%emt 0:04:24]} Re8 {[%emt 0:08:58]} 11. f4 {[%emt 0:01:44]} Nd7 {[%emt 0:04:14]} 12. Qf3 {[%emt 0:04:21]} Rb8 {[%emt 0:08:39]} 13. Rab1 {[%emt 0:01:34]} Bb7 {[%emt 0:03:47]} 14. b3 {[%emt 0:05:48]} c5 {[%emt 0:05:10]} 15. Rbe1 {[%emt 0:07:59]} Nb6 {[%emt 0:17:54]} 16. f5 {[%emt 0:06:31]} Nd7 {[%emt 0:12:34]} 17. Qg3 {[%emt 0:10:52]} Be5 {[%emt 0:03:50]} 18. Qg4 {[%emt 0:02:14]} Bd4+ {[%emt 0:00:57]} 19. Kh1 {[%emt 0:00:03]} Kh8 {[%emt 0:08:47]} 20. fxg6 {[%emt 0:09:57]} fxg6 {[%emt 0:00:58]} 21. Bg5 {[%emt 0:01:06]} Qc8 {[%emt 0:08:44]} 22. Nb5 {[%emt 0:01:22]} Ne5 {[%emt 0:03:55]} 23. Qh4 {[%emt 0:00:37]} Qd7 {[%emt 0:00:50]} 24. Nxd4 {[%emt 0:00:58]} cxd4 {[%emt 0:00:07]} 25. Bf6+ {[%emt 0:00:23]} Kg8 {[%emt 0:00:13]} 26. Bxe5 {[%emt 0:00:57]} Rxe5 {[%emt 0:00:32]} 27. Bc4+ {[%emt 0:00:03]} d5 {[%emt 0:01:00]} 28. exd5 {[%emt 0:00:05]} Qd6 {[%emt 0:01:24]} 29. Rxe5 {[%emt 0:00:45]} Qxe5 {[%emt 0:00:05]} 30. d6+ {[%emt 0:00:51]} Kh8 {[%emt 0:00:15]} 31. Rf7 {[%emt 0:00:43]} h5 {[%emt 0:00:21]} 32. d7 {[%emt 0:01:12]} Qd6 {[%emt 0:00:47]} 33. Qg5 {[%emt 0:00:20]} 1-0

[Event "28th Bosnjaci Open 2024"]
[Site "Bosnjaci"]
[Date "2024.01.06"]
[Round "5.10"]
[White "Alimpic, Aleksa"]
[Black "Berke, Ana"]
[Result "1-0"]
[ECO "D37"]
[WhiteElo "2282"]
[BlackElo "2092"]
[Annotator "RC"]
[PlyCount "183"]
[EventDate "2024.01.02"]
[EventType "swiss"]
[EventCountry "CRO"]
[SourceTitle "playchess.com"]
[Source "ChessBase"]
[SourceQuality "1"]
[TimeControl "5400+30"]

1. d4 {[%emt 0:00:01]} d5 {[%emt 1:31:00]} 2. c4 {[%emt 0:00:11]} e6 {[%emt 0:00:00]} 3. Nf3 {[%emt 0:00:11]} Nf6 {[%emt 0:00:00]} 4. Nc3 {[%emt 0:00:05]} Be7 {[%emt 0:00:00]} 5. Bf4 {[%emt 0:00:13]} O-O {[%emt 0:00:00]} 6. a3 {[%emt 0:00:18]} c5 {[%emt 0:00:00]} 7. dxc5 {[%emt 0:00:20]} Bxc5 {[%emt 0:00:00]} 8. e3 {[%emt 0:00:09]} Nc6 {[%emt 0:00:00]} 9. cxd5 {[%emt 0:00:08]} exd5 {[%emt 0:00:00]} 10. Be2 {[%emt 0:02:29]} a6 {[%emt 0:00:00]} 11. O-O {[%emt 0:13:43]} d4 {[%emt 0:00:00]} 12. exd4 {[%emt 0:01:07]} Nxd4 {[%emt 0:00:00]} 13. Nxd4 {[%emt 0:00:15]} Bxd4 {[%emt 0:00:00]} 14. Qb3 {[%emt 0:06:50]} b5 {[%emt 0:00:00]} 15. Rad1 {[%emt 0:09:55]} Qb6 {[%emt 0:00:00]} 16. Nd5 {[%emt 0:00:51]} Nxd5 {[%emt 0:00:00]} 17. Qxd5 {[%emt 0:01:04]} Bxb2 {[%emt 0:00:00]} 18. Qxa8 {[%emt 0:07:07]} Bb7 {[%emt 0:00:00]} 19. Be3 {[%emt 0:00:13]} Qc6 {[%emt 0:00:00]} 20. Bf3 {[%emt 0:00:14]} Rxa8 {[%emt 0:00:00]} 21. Bxc6 {[%emt 0:00:05]} Bxc6 {[%emt 0:00:00]} 22. Rd6 {[%emt 0:03:30]} Be4 {[%emt 0:00:00]} 23. Rfd1 {[%emt 0:02:35]} h6 {[%emt 0:00:00]} 24. Rd8+ {[%emt 0:00:42]} Rxd8 {[%emt 0:00:00]} 25. Rxd8+ {[%emt 0:00:05]} Kh7 {[%emt 0:00:00]} 26. Bc5 {[%emt 0:00:38]} a5 {[%emt 0:00:00]} 27. f3 {[%emt 0:07:45]} Bf5 {[%emt 0:00:00]} 28. Rb8 {[%emt 0:03:09]} Bd3 {[%emt 0:00:00]} 29. Kf2 {[%emt 0:01:24]} Bc1 {[%emt 0:00:00]} 30. h4 {[%emt 0:01:52]} h5 {[%emt 0:00:00]} 31. Ra8 {[%emt 0:00:55]} a4 {[%emt 0:00:00]} 32. g4 {[%emt 0:02:36]} hxg4 {[%emt 0:00:00]} 33. fxg4 {[%emt 0:00:06]} Bc4 {[%emt 0:00:00]} 34. Bb4 {[%emt 0:04:34]} Bb2 {[%emt 0:00:00]} 35. Ke3 {[%emt 0:01:29]} Bf6 {[%emt 0:00:00]} 36. g5 {[%emt 0:00:33]} Bb2 {[%emt 0:00:00]} 37. Ra6 {[%emt 0:03:21]} Be6 {[%emt 0:00:00]} 38. Rb6 {[%emt 0:04:30]} Bc4 {[%emt 0:00:00]} 39. Be7 {[%emt 0:02:11]} Bc3 {[%emt 0:00:00]} 40. h5 {[%emt 0:03:38]} Bb2 {[%emt 0:00:00]} 41. Kf4 {[%emt 0:07:27]} Bc1+ {[%emt 0:00:00]} 42. Kf3 {[%emt 0:00:46]} Bd5+ {[%emt 0:00:00]} 43. Kg3 {[%emt 0:01:12]} Bc4 {[%emt 0:00:00]} 44. h6 {[%emt 0:02:14]} Bb2 {[%emt 0:00:00]} 45. Kf4 {[%emt 0:01:26]} Bc1+ {[%emt 0:00:00]} 46. Ke4 {[%emt 0:00:14]} Bb2 {[%emt 0:00:00]} 47. Bc5 {[%emt 0:01:09]} Bc3 {[%emt 0:01:23]} 48. Bf8 {[%emt 0:03:23]} gxh6 {[%emt 0:04:58]} 49. Rxh6+ {[%emt 0:00:07]} Kg8 {[%emt 0:00:04]} 50. Be7 {[%emt 0:00:06]} Kg7 {[%emt 0:00:26]} 51. Rd6 {[%emt 0:02:03]} Bb2 {[%emt 0:01:20]} 52. Rd2 {[%emt 0:01:05]} Ba1 {[%emt 0:01:19]} 53. Rh2 {[%emt 0:00:16]} Bc3 {[%emt 0:02:41]} 54. Rh3 {[%emt 0:00:09]} Bb2 {[%emt 0:00:21]} 55. Bb4 {[%emt 0:01:34]} Kg6 {[%emt 0:01:24]} 56. Be7 {[%emt 0:00:10]} Kg7 {[%emt 0:00:31]} 57. Rh6 {[%emt 0:01:41]} Bc3 {[%emt 0:00:12]} 58. Rh2 {[%emt 0:01:20]} Kg6 {[%emt 0:00:54]} 59. Rf2 {[%emt 0:00:16]} Bg7 {[%emt 0:01:22]} 60. Bf6 {[%emt 0:00:39]} Bb3 {[%emt 0:06:12]} 61. Ke5 {[%emt 0:00:22]} Be6 {[%emt 0:06:53]} 62. Rd2 {[%emt 0:01:03]} Bc4 {[%emt 0:00:00]} 63. Rd8 {[%emt 0:00:15]} Bxf6+ {[%emt 0:01:00]} 64. gxf6 {[%emt 0:00:05]} Kg5 {[%emt 0:00:00]} 65. Rg8+ {[%emt 0:00:05]} Kh4 {[%emt 0:00:00]} 66. Kf5 {[%emt 0:01:00]} Be6+ {[%emt 0:00:00]} 67. Kf4 {[%emt 0:00:06]} Kh3 {[%emt 0:00:00]} 68. Rg5 {[%emt 0:02:21]} Bc4 {[%emt 0:00:00]} 69. Rg4 {[%emt 0:00:16]} Be6 {[%emt 0:00:00]} 70. Rg3+ {[%emt 0:00:10]} Kh4 {[%emt 0:00:04]} 71. Rg1 {[%emt 0:00:21]} Kh3 {[%emt 0:00:23]} 72. Re1 {[%emt 0:00:59]} Bc4 {[%emt 0:00:07]} 73. Rb1 {[%emt 0:00:18]} Kg2 {[%emt 0:00:26]} 74. Rb2+ {[%emt 0:00:09]} Kh3 {[%emt 0:00:12]} 75. Rc2 {[%emt 0:00:34]} Be6 {[%emt 0:00:30]} 76. Re2 {[%emt 0:01:11]} Bc4 {[%emt 0:00:09]} 77. Rd2 {[%emt 0:00:08]} Be6 {[%emt 0:00:09]} 78. Rd8 {[%emt 0:00:27]} Kg2 {[%emt 0:01:09]} 79. Rd3 {[%emt 0:00:07]} Bc4 {[%emt 0:00:28]} 80. Rc3 {[%emt 0:00:33]} Be6 {[%emt 0:00:17]} 81. Re3 {[%emt 0:00:12]} Bc4 {[%emt 0:00:06]} 82. Ke4 {[%emt 0:00:09]} Kf2 {[%emt 0:00:23]} 83. Kd4 {[%emt 0:00:06]} Ba2 {[%emt 0:03:28]} 84. Rc3 {[%emt 0:00:19]} Ke1 {[%emt 0:00:54]} 85. Rc2 {[%emt 0:01:10]} Bb3 {[%emt 0:00:28]} 86. Rb2 {[%emt 0:00:17]} Bc4 {[%emt 0:01:00]} 87. Kc5 {[%emt 0:00:14]} Kd1 {[%emt 0:00:56]} 88. Rxb5 {[%emt 0:00:30]} Bb3 {[%emt 0:00:40]} 89. Kb4 {[%emt 0:00:15]} Kc2 {[%emt 0:00:33]} 90. Rc5+ {[%emt 0:00:27]} Kd3 {[%emt 0:00:10]} 91. Rc3+ {[%emt 0:01:31]} Kd4 {[%emt 0:00:17]} 92. Rxb3 {[%emt 0:00:05]} 1-0

[Event "28th Bosnjaci Open 2024"]
[Site "Bosnjaci"]
[Date "2024.01.06"]
[Round "5.11"]
[White "Cupic, Lovro"]
[Black "Kejzar, Petra"]
[Result "1-0"]
[ECO "B81"]
[WhiteElo "2265"]
[BlackElo "2025"]
[Annotator "RC"]
[PlyCount "63"]
[EventDate "2024.01.02"]
[EventType "swiss"]
[EventCountry "CRO"]
[SourceTitle "playchess.com"]
[Source "ChessBase"]
[SourceQuality "1"]
[TimeControl "5400+30"]

1. e4 {[%emt 0:00:06]} c5 {[%emt 0:00:58]} 2. Nf3 {[%emt 0:00:06]} e6 {[%emt 0:00:05]} 3. d4 {[%emt 0:00:06]} cxd4 {[%emt 0:00:04]} 4. Nxd4 {[%emt 0:00:05]} Nf6 {[%emt 0:00:04]} 5. Nc3 {[%emt 0:00:13]} d6 {[%emt 0:00:04]} 6. g4 {[%emt 0:02:37]} h6 {[%emt 0:00:09]} 7. h4 {[%emt 0:00:40]} Nc6 {[%emt 0:00:07]} 8. g5 {[%emt 0:07:14]} hxg5 {[%emt 0:00:58]} 9. Bxg5 {[%emt 0:00:09]} Bd7 {[%emt 0:09:06]} 10. Ndb5 {[%emt 0:02:51]} Qb8 {[%emt 0:03:08]} 11. a4 {[%emt 0:04:27]} a6 {[%emt 0:02:19]} 12. Na3 {[%emt 0:00:06]} b6 {[%emt 0:08:08]} 13. Bg2 {[%emt 0:02:59]} Qc7 {[%emt 0:02:14]} 14. Qe2 {[%emt 0:04:01]} Bc8 {[%emt 0:03:05]} 15. O-O-O {[%emt 0:05:35]} Bb7 {[%emt 0:03:11]} 16. Nc4 {[%emt 0:01:48]} Ne5 {[%emt 0:01:53]} 17. Ne3 {[%emt 0:00:47]} Rc8 {[%emt 0:03:13]} 18. Rd4 {[%emt 0:01:38]} Nfd7 {[%emt 0:19:27]} 19. Rhd1 {[%emt 0:21:31]} f6 {[%emt 0:04:43]} 20. Bf4 {[%emt 0:00:05]} Rxh4 {[%emt 0:05:04]} 21. Bg3 {[%emt 0:43:56]} Rh8 {[%emt 0:00:13]} 22. f4 {[%emt 0:00:00]} Nc6 {[%emt 0:00:44]} 23. R4d2 {[%emt 0:00:00]} Na5 {[%emt 0:12:00]} 24. Qg4 {[%emt 0:00:00]} Nc5 {[%emt 0:01:43]} 25. e5 {[%emt 0:00:00]} Bxg2 {[%emt 0:02:04]} 26. exd6 {[%emt 0:00:00]} Ncb3+ {[%emt 0:04:27]} 27. cxb3 {[%emt 0:00:00]} Nxb3+ {[%emt 0:00:05]} 28. Kc2 {[%emt 0:00:00]} Bxd6 {[%emt 0:03:36]} 29. Qxe6+ {[%emt 0:00:00]} Be7 {[%emt 0:00:09]} 30. Rd7 {[%emt 0:00:00]} Qc5 {[%emt 0:03:03]} 31. Nf5 {[%emt 0:00:00]} Rc7 {[%emt 0:02:53]} 32. Rd8# {[%emt 0:00:00]} 1-0

[Event "28th Bosnjaci Open 2024"]
[Site "Bosnjaci"]
[Date "2024.01.06"]
[Round "5.12"]
[White "Starcevic, Ante Leon"]
[Black "Pehar, Borna"]
[Result "0-1"]
[ECO "A33"]
[WhiteElo "2209"]
[BlackElo "1906"]
[Annotator "RC"]
[PlyCount "48"]
[EventDate "2024.01.02"]
[EventType "swiss"]
[EventCountry "CRO"]
[SourceTitle "playchess.com"]
[Source "ChessBase"]
[SourceQuality "1"]
[TimeControl "5400+30"]

1. Nf3 {[%emt 0:05:04]} c5 {[%emt 0:00:21]} 2. c4 {[%emt 0:00:12]} Nc6 {[%emt 0:00:07]} 3. d4 {[%emt 0:00:05]} cxd4 {[%emt 0:00:06]} 4. Nxd4 {[%emt 0:00:02]} Nf6 {[%emt 0:00:12]} 5. Nc3 {[%emt 0:00:09]} e6 {[%emt 0:00:06]} 6. a3 {[%emt 0:00:07]} Bc5 {[%emt 0:00:16]} 7. Nb3 {[%emt 0:00:03]} Bb6 {[%emt 0:00:08]} 8. e4 {[%emt 0:11:12]} O-O {[%emt 0:00:06]} 9. Be2 {[%emt 0:01:31]} d6 {[%emt 0:00:04]} 10. O-O {[%emt 0:06:01]} a5 {[%emt 0:00:34]} 11. a4 {[%emt 0:08:35]} Re8 {[%emt 0:00:06]} 12. Bf4 {[%emt 0:03:00]} e5 {[%emt 0:04:08]} 13. Bg5 {[%emt 0:02:29]} Be6 {[%emt 0:01:56]} 14. Nb5 {[%emt 0:12:19]} h6 {[%emt 0:09:02]} 15. Bxf6 {[%emt 0:01:00]} Qxf6 {[%emt 0:00:03]} 16. Qxd6 {[%emt 0:08:39]} Rad8 {[%emt 0:03:22]} 17. Qa3 {[%emt 0:00:14]} Nb4 {[%emt 0:01:31]} 18. Rac1 {[%emt 0:06:01]} Nd3 {[%emt 0:01:44]} 19. c5 {[%emt 0:03:11]} Nf4 {[%emt 0:14:12]} 20. Bf3 {[%emt 0:08:41]} Qg6 {[%emt 0:45:14]} 21. cxb6 {[%emt 0:06:35]} Rd3 {[%emt 0:00:32]} 22. Rc3 {[%emt 0:01:40]} Rxf3 {[%emt 0:00:07]} 23. g3 {[%emt 0:00:03]} Qxe4 {[%emt 0:18:03]} 24. Nd2 {[%emt 0:08:37]} Rxg3+ {[%emt 0:00:00]} 0-1

[Event "28th Bosnjaci Open 2024"]
[Site "Bosnjaci"]
[Date "2024.01.06"]
[Round "5.13"]
[White "Sekelja, Marko"]
[Black "Markovic, Franjo-Josip"]
[Result "0-1"]
[ECO "B12"]
[WhiteElo "2036"]
[BlackElo "2194"]
[Annotator "RC"]
[PlyCount "80"]
[EventDate "2024.01.02"]
[EventType "swiss"]
[EventCountry "CRO"]
[SourceTitle "playchess.com"]
[Source "ChessBase"]
[SourceQuality "1"]
[TimeControl "5400+30"]

1. e4 {[%emt 0:00:04]} c6 {[%emt 0:06:49]} 2. d4 {[%emt 0:00:08]} d5 {[%emt 0:00:08]} 3. e5 {[%emt 0:00:05]} c5 {[%emt 0:00:11]} 4. c3 {[%emt 0:00:40]} Nc6 {[%emt 0:00:35]} 5. Bb5 {[%emt 0:14:33]} Qb6 {[%emt 0:02:28]} 6. Bxc6+ {[%emt 0:00:07]} bxc6 {[%emt 0:01:33]} 7. Ne2 {[%emt 0:01:37]} e6 {[%emt 0:01:56]} 8. O-O {[%emt 0:01:10]} Ba6 {[%emt 0:01:48]} 9. dxc5 {[%emt 0:00:44]} Bxc5 {[%emt 0:00:44]} 10. b4 {[%emt 0:00:08]} Be7 {[%emt 0:00:28]} 11. Be3 {[%emt 0:00:36]} Qc7 {[%emt 0:00:22]} 12. Bd4 {[%emt 0:03:16]} Nh6 {[%emt 0:00:46]} 13. Nd2 {[%emt 0:19:24]} Nf5 {[%emt 0:00:46]} 14. Re1 {[%emt 0:00:54]} Bxe2 {[%emt 1:18:56]} 15. Rxe2 {[%emt 0:01:09]} Bxb4 {[%emt 0:00:00]} 16. Nb3 {[%emt 0:21:40]} Be7 {[%emt 0:00:00]} 17. g4 {[%emt 0:02:03]} Nh4 {[%emt 0:00:00]} 18. f4 {[%emt 0:00:30]} h5 {[%emt 0:00:00]} 19. h3 {[%emt 0:01:27]} c5 {[%emt 0:00:00]} 20. Bf2 {[%emt 0:01:28]} hxg4 {[%emt 0:00:00]} 21. hxg4 {[%emt 0:00:41]} Qc6 {[%emt 0:00:00]} 22. Bxh4 {[%emt 0:00:19]} Rxh4 {[%emt 0:00:00]} 23. Rg2 {[%emt 0:00:29]} Qa4 {[%emt 0:00:00]} 24. Qd2 {[%emt 0:07:15]} O-O-O {[%emt 0:00:00]} 25. Kf2 {[%emt 0:09:11]} g5 {[%emt 0:00:00]} 26. fxg5 {[%emt 0:03:42]} Rxg4 {[%emt 0:00:00]} 27. Rag1 {[%emt 0:03:58]} Rxg2+ {[%emt 0:00:00]} 28. Rxg2 {[%emt 0:00:20]} Rh8 {[%emt 0:00:00]} 29. Qe2 {[%emt 0:01:32]} Qf4+ {[%emt 0:00:00]} 30. Kg1 {[%emt 0:01:43]} c4 {[%emt 0:00:00]} 31. Qd2 {[%emt 0:04:24]} Qxd2 {[%emt 0:00:00]} 32. Nxd2 {[%emt 0:00:05]} Rh3 {[%emt 0:00:00]} 33. g6 {[%emt 0:00:41]} fxg6 {[%emt 0:00:00]} 34. Rxg6 {[%emt 0:00:06]} Rd3 {[%emt 0:00:00]} 35. Nf1 {[%emt 0:01:16]} Rxc3 {[%emt 0:00:00]} 36. Rxe6 {[%emt 0:00:24]} Kd7 {[%emt 0:00:00]} 37. Ra6 {[%emt 0:00:29]} Bc5+ {[%emt 0:00:00]} 38. Kg2 {[%emt 0:00:05]} Ra3 {[%emt 0:00:00]} 39. Rxa3 {[%emt 0:01:03]} Bxa3 {[%emt 0:00:00]} 40. Kf2 {[%emt 0:00:32]} Ke6 {[%emt 0:00:00]} 0-1

[Event "28th Bosnjaci Open 2024"]
[Site "Bosnjaci"]
[Date "2024.01.06"]
[Round "5.14"]
[White "Vucenovic, Damian"]
[Black "Kukic, Lora"]
[Result "1-0"]
[ECO "B13"]
[WhiteElo "2193"]
[BlackElo "1945"]
[Annotator "RC"]
[PlyCount "75"]
[EventDate "2024.01.02"]
[EventType "swiss"]
[EventCountry "CRO"]
[SourceTitle "playchess.com"]
[Source "ChessBase"]
[SourceQuality "1"]
[TimeControl "5400+30"]

1. e4 {[%emt 0:00:05]} c6 {[%emt 0:00:06]} 2. d4 {[%emt 0:00:11]} d5 {[%emt 0:00:08]} 3. exd5 {[%emt 0:00:16]} cxd5 {[%emt 0:00:51]} 4. Bd3 {[%emt 0:00:26]} Nf6 {[%emt 0:00:44]} 5. c3 {[%emt 0:00:46]} Bg4 {[%emt 0:02:26]} 6. Qb3 {[%emt 0:00:42]} Qc7 {[%emt 0:01:17]} 7. Bg5 {[%emt 0:00:36]} e6 {[%emt 0:01:13]} 8. Nd2 {[%emt 0:00:56]} Bd6 {[%emt 0:04:08]} 9. Ngf3 {[%emt 0:01:10]} Nc6 {[%emt 0:02:12]} 10. O-O {[%emt 0:03:48]} Nd7 {[%emt 0:04:06]} 11. Qc2 {[%emt 0:14:41]} Bh5 {[%emt 0:20:43]} 12. Rfe1 {[%emt 0:01:46]} h6 {[%emt 0:01:57]} 13. Bh4 {[%emt 0:00:39]} g5 {[%emt 0:05:31]} 14. Bg3 {[%emt 0:00:28]} Kf8 {[%emt 0:06:49]} 15. b4 {[%emt 0:03:09]} a6 {[%emt 0:01:07]} 16. a4 {[%emt 0:00:41]} Ne7 {[%emt 0:05:24]} 17. Rac1 {[%emt 0:06:43]} Bxg3 {[%emt 0:03:21]} 18. hxg3 {[%emt 0:05:46]} Rc8 {[%emt 0:02:38]} 19. Qb1 {[%emt 0:04:54]} Qb8 {[%emt 0:03:20]} 20. c4 {[%emt 0:01:30]} dxc4 {[%emt 0:00:36]} 21. Bxc4 {[%emt 0:05:45]} b5 {[%emt 0:06:19]} 22. axb5 {[%emt 0:06:38]} axb5 {[%emt 0:00:04]} 23. Bd3 {[%emt 0:00:10]} Kg7 {[%emt 0:05:47]} 24. Ne4 {[%emt 0:07:13]} Nd5 {[%emt 0:02:37]} 25. Nc5 {[%emt 0:01:35]} N7f6 {[%emt 0:03:24]} 26. Ne5 {[%emt 0:01:26]} Qd6 {[%emt 0:01:46]} 27. Qb2 {[%emt 0:05:21]} Ng4 {[%emt 0:04:07]} 28. Be2 {[%emt 0:02:53]} Ngf6 {[%emt 0:00:02]} 29. Bd3 {[%emt 0:08:20]} Ng4 {[%emt 0:00:25]} 30. Be4 {[%emt 0:01:54]} Ngf6 {[%emt 0:00:57]} 31. f3 {[%emt 0:01:53]} Nxe4 {[%emt 0:00:45]} 32. fxe4 {[%emt 0:00:19]} Nf6 {[%emt 0:00:12]} 33. Rf1 {[%emt 0:00:59]} Ng4 {[%emt 0:00:19]} 34. Rxf7+ {[%emt 0:03:57]} Bxf7 {[%emt 0:00:01]} 35. Nxg4 {[%emt 0:00:07]} Qxg3 {[%emt 0:03:18]} 36. d5+ {[%emt 0:00:50]} Kh7 {[%emt 0:00:18]} 37. Qf6 {[%emt 0:01:50]} Bg6 {[%emt 0:00:30]} 38. Qe7+ {[%emt 0:00:12]} 1-0

[Event "28th Bosnjaci Open 2024"]
[Site "Bosnjaci"]
[Date "2024.01.06"]
[Round "5.15"]
[White "Alfirevic, Duje"]
[Black "Ljikar, Zoran"]
[Result "0-1"]
[ECO "B40"]
[WhiteElo "2000"]
[BlackElo "2200"]
[Annotator "RC"]
[PlyCount "68"]
[EventDate "2024.01.02"]
[EventType "swiss"]
[EventCountry "CRO"]
[SourceTitle "playchess.com"]
[Source "ChessBase"]
[SourceQuality "1"]
[TimeControl "5400+30"]

1. e4 {[%emt 0:07:07]} c5 {[%emt 0:00:13]} 2. Nf3 {[%emt 0:00:14]} e6 {[%emt 0:00:07]} 3. g3 {[%emt 0:00:06]} a6 {[%emt 0:00:44]} 4. Bg2 {[%emt 0:00:23]} b5 {[%emt 0:00:19]} 5. O-O {[%emt 0:00:50]} Bb7 {[%emt 0:00:15]} 6. d3 {[%emt 0:01:50]} Be7 {[%emt 0:02:32]} 7. a4 {[%emt 0:01:47]} Nf6 {[%emt 0:02:04]} 8. axb5 {[%emt 0:02:42]} axb5 {[%emt 0:00:16]} 9. Rxa8 {[%emt 0:00:09]} Bxa8 {[%emt 0:00:01]} 10. Qe2 {[%emt 0:05:43]} O-O {[%emt 0:00:57]} 11. c3 {[%emt 0:02:37]} d6 {[%emt 0:11:22]} 12. Nbd2 {[%emt 0:07:22]} Nbd7 {[%emt 0:01:23]} 13. Ne1 {[%emt 0:14:25]} e5 {[%emt 0:10:31]} 14. f4 {[%emt 0:02:19]} Qb6 {[%emt 0:04:53]} 15. Nef3 {[%emt 0:03:17]} Re8 {[%emt 0:02:34]} 16. Kh1 {[%emt 0:02:18]} Bf8 {[%emt 0:00:47]} 17. fxe5 {[%emt 0:13:37]} Nxe5 {[%emt 0:03:08]} 18. Nxe5 {[%emt 0:00:50]} dxe5 {[%emt 0:07:00]} 19. c4 {[%emt 0:02:33]} Nd7 {[%emt 0:16:51]} 20. cxb5 {[%emt 0:02:28]} Qxb5 {[%emt 0:00:14]} 21. Qf2 {[%emt 0:06:35]} f6 {[%emt 0:00:38]} 22. Nc4 {[%emt 0:01:49]} Nb6 {[%emt 0:00:48]} 23. Nxb6 {[%emt 0:02:00]} Qxb6 {[%emt 0:00:01]} 24. Qc2 {[%emt 0:00:29]} Qb5 {[%emt 0:01:51]} 25. b3 {[%emt 0:08:50]} Rb8 {[%emt 0:03:01]} 26. Bh3 {[%emt 0:00:24]} Kf7 {[%emt 0:00:49]} 27. Qd1 {[%emt 0:05:31]} Qxb3 {[%emt 0:05:29]} 28. Qg4 {[%emt 0:02:31]} Rd8 {[%emt 0:03:25]} 29. Qh5+ {[%emt 0:03:14]} Kg8 {[%emt 0:01:40]} 30. Bf5 {[%emt 0:00:53]} g6 {[%emt 0:00:40]} 31. Bxg6 {[%emt 0:00:31]} hxg6 {[%emt 0:00:05]} 32. Qxg6+ {[%emt 0:00:05]} Bg7 {[%emt 0:00:09]} 33. Bh6 {[%emt 0:00:59]} Qf7 {[%emt 0:00:07]} 34. Rxf6 {[%emt 0:00:26]} Qxf6 {[%emt 0:00:32]} 0-1

[Event "28th Bosnjaci Open 2024"]
[Site "Bosnjaci"]
[Date "2024.01.06"]
[Round "5.16"]
[White "Jocev, Milan"]
[Black "Ivancic, Ivan"]
[Result "1-0"]
[ECO "E04"]
[WhiteElo "2376"]
[BlackElo "2001"]
[Annotator "RC"]
[PlyCount "61"]
[EventDate "2024.01.02"]
[EventType "swiss"]
[EventCountry "CRO"]
[SourceTitle "playchess.com"]
[Source "ChessBase"]
[SourceQuality "1"]
[TimeControl "5400+30"]

1. c4 {[%emt 0:00:07]} e6 {[%emt 0:00:15]} 2. d4 {[%emt 0:01:22]} d5 {[%emt 0:00:44]} 3. Nf3 {[%emt 0:00:39]} Nf6 {[%emt 0:00:27]} 4. g3 {[%emt 0:00:27]} dxc4 {[%emt 0:00:39]} 5. Bg2 {[%emt 0:00:16]} Bb4+ {[%emt 0:00:37]} 6. Bd2 {[%emt 0:00:07]} a5 {[%emt 0:00:43]} 7. O-O {[%emt 0:02:00]} O-O {[%emt 0:00:44]} 8. Qc2 {[%emt 0:03:59]} Bxd2 {[%emt 0:01:00]} 9. Nbxd2 {[%emt 0:00:48]} b5 {[%emt 0:00:53]} 10. a4 {[%emt 0:07:43]} c6 {[%emt 0:00:27]} 11. e4 {[%emt 0:00:21]} Bb7 {[%emt 0:06:10]} 12. e5 {[%emt 0:02:50]} Nd5 {[%emt 0:00:22]} 13. Ne4 {[%emt 0:00:08]} Na6 {[%emt 0:02:36]} 14. Neg5 {[%emt 0:10:24]} g6 {[%emt 0:01:13]} 15. h4 {[%emt 0:00:33]} Nab4 {[%emt 0:01:12]} 16. Qd2 {[%emt 0:01:54]} h6 {[%emt 0:16:09]} 17. Ne4 {[%emt 0:02:47]} Kg7 {[%emt 0:01:06]} 18. Nh2 {[%emt 0:02:04]} h5 {[%emt 0:04:19]} 19. Nf3 {[%emt 0:03:47]} Ba6 {[%emt 0:02:57]} 20. Nfg5 {[%emt 0:06:01]} bxa4 {[%emt 0:13:22]} 21. Nd6 {[%emt 0:05:41]} Qe7 {[%emt 0:01:36]} 22. f4 {[%emt 0:02:03]} Qd7 {[%emt 0:08:50]} 23. f5 {[%emt 0:08:14]} exf5 {[%emt 0:02:56]} 24. Bh3 {[%emt 0:10:13]} Ne7 {[%emt 0:02:33]} 25. Nge4 {[%emt 0:03:31]} Nbd5 {[%emt 0:03:41]} 26. Rxf5 {[%emt 0:01:16]} Nxf5 {[%emt 0:01:28]} 27. Nxf5+ {[%emt 0:00:14]} gxf5 {[%emt 0:00:25]} 28. Qg5+ {[%emt 0:00:06]} Kh8 {[%emt 0:00:14]} 29. Qxh5+ {[%emt 0:02:06]} Kg7 {[%emt 0:01:10]} 30. Qg5+ {[%emt 0:00:09]} Kh8 {[%emt 0:00:14]} 31. Bxf5 {[%emt 0:00:50]} 1-0

[Event "28th Bosnjaci Open 2024"]
[Site "Bosnjaci"]
[Date "2024.01.06"]
[Round "5.17"]
[White "Goric, Esad"]
[Black "Maravic, Ivan"]
[Result "1-0"]
[ECO "A30"]
[WhiteElo "2196"]
[BlackElo "1991"]
[Annotator "RC"]
[PlyCount "51"]
[EventDate "2024.01.02"]
[EventType "swiss"]
[EventCountry "CRO"]
[SourceTitle "playchess.com"]
[Source "ChessBase"]
[SourceQuality "1"]
[TimeControl "5400+30"]

1. Nf3 {[%emt 0:00:04]} Nf6 {[%emt 0:00:19]} 2. b3 {[%emt 0:00:08]} g6 {[%emt 0:00:31]} 3. Bb2 {[%emt 0:00:13]} Bg7 {[%emt 0:00:47]} 4. e3 {[%emt 0:00:08]} O-O {[%emt 0:01:16]} 5. Be2 {[%emt 0:00:06]} c5 {[%emt 0:03:17]} 6. O-O {[%emt 0:00:20]} Nc6 {[%emt 0:00:20]} 7. c4 {[%emt 0:00:08]} b6 {[%emt 0:07:16]} 8. d4 {[%emt 0:00:16]} cxd4 {[%emt 0:03:28]} 9. Nxd4 {[%emt 0:00:04]} Nxd4 {[%emt 0:00:53]} 10. Qxd4 {[%emt 1:34:03]} Ne8 {[%emt 1:17:23]} 11. Qd2 {[%emt 0:00:00]} Bxb2 {[%emt 0:00:00]} 12. Qxb2 {[%emt 0:00:00]} Bb7 {[%emt 0:00:00]} 13. Nc3 {[%emt 0:00:00]} Nf6 {[%emt 0:00:00]} 14. Rfd1 {[%emt 0:00:00]} d6 {[%emt 0:00:00]} 15. Rac1 {[%emt 0:00:00]} Qd7 {[%emt 0:00:00]} 16. h3 {[%emt 0:03:00]} Rfd8 {[%emt 0:00:00]} 17. Nb5 {[%emt 0:00:00]} a6 {[%emt 0:00:00]} 18. Nxd6 {[%emt 0:00:00]} exd6 {[%emt 0:00:00]} 19. Qxf6 {[%emt 0:00:00]} Rac8 {[%emt 0:00:00]} 20. Bg4 {[%emt 0:00:00]} Qc6 {[%emt 0:00:00]} 21. Bf3 {[%emt 0:00:00]} d5 {[%emt 0:00:00]} 22. Qxc6 {[%emt 0:00:00]} Bxc6 {[%emt 0:00:00]} 23. cxd5 {[%emt 0:00:00]} Bb7 {[%emt 0:00:00]} 24. e4 {[%emt 0:00:00]} Rxc1 {[%emt 0:00:00]} 25. Rxc1 {[%emt 0:00:00]} Rd7 {[%emt 0:00:00]} 26. Bg4 {[%emt 0:00:00]} 1-0